[Event "RUS-ch Blitz 2021"]
[Site "Sochi"]
[Date "2021.10.11"]
[Round "13.19"]
[White "Nozdrachev, Vladislav"]
[Black "Oganian, Miran"]
[Result "0-1"]
[ECO "B51"]
[WhiteElo "2495"]
[BlackElo "2441"]
[Annotator "ChessBase"]
[PlyCount "102"]
[EventDate "2021.10.11"]
[EventType "blitz"]
[EventCountry "RUS"]
[SourceTitle "playchess.com"]
[Source "ChessBase"]
[SourceQuality "1"]
[TimeControl "180+2"]

1. e4 {[%emt 0:00:00]} c5 {[%emt 0:00:00]} 2. Nf3 {[%emt 0:00:09]} Nc6 {
[%emt 0:00:00]} 3. Bb5 {[%emt 0:00:00]} d6 {[%emt 0:00:00]} 4. Bxc6+ {[%emt 0:
00:00]} bxc6 {[%emt 0:00:00]} 5. O-O {[%emt 0:00:05]} Bg4 {[%emt 0:00:03]} 6.
h3 {[%emt 0:00:00]} Bh5 {[%emt 0:00:10]} 7. d3 {[%emt 0:00:00]} e6 {[%emt 0:00:
00]} 8. Nbd2 {[%emt 0:00:06]} Nf6 {[%emt 0:00:03]} 9. e5 {[%emt 0:00:24]} Nd5 {
[%emt 0:00:06]} 10. Nc4 {[%emt 0:00:06]} dxe5 {[%emt 0:00:08]} 11. Ncxe5 {
[%emt 0:00:05]} Bd6 {[%emt 0:00:14]} 12. Re1 {[%emt 0:00:04]} Qc7 {[%emt 0:00:
08]} 13. Nc4 {[%emt 0:00:06]} Bf4 {[%emt 0:00:17]} 14. Qe2 {[%emt 0:00:17]} O-O
{[%emt 0:00:12]} 15. Qe4 {[%emt 0:00:27]} Rae8 {[%emt 0:00:53]} 16. Bxf4 {
[%emt 0:00:08]} Nxf4 {[%emt 0:00:07]} 17. Nfe5 {[%emt 0:00:09]} Nd5 {[%emt 0:
00:02]} 18. Qh4 {[%emt 0:00:32]} Bg6 {[%emt 0:00:00]} 19. Nxg6 {[%emt 0:00:10]}
hxg6 {[%emt 0:00:00]} 20. Ne5 {[%emt 0:00:00]} Rb8 {[%emt 0:00:09]} 21. b3 {
[%emt 0:00:00]} Rb4 {[%emt 0:00:02]} 22. c4 {[%emt 0:00:02]} Nf6 {[%emt 0:00:
13]} 23. Rad1 {[%emt 0:00:15]} Rd8 {[%emt 0:00:03]} 24. d4 {[%emt 0:00:06]}
cxd4 {[%emt 0:00:15]} 25. Rxd4 {[%emt 0:00:00]} Rbb8 {[%emt 0:00:02]} 26. Rf4 {
[%emt 0:00:28]} Rd2 {[%emt 0:00:15]} 27. Nf3 {[%emt 0:00:00]} Rd7 {[%emt 0:00:
25]} 28. Ng5 {[%emt 0:00:04]} Nh5 {[%emt 0:00:00]} 29. Rf3 {[%emt 0:00:00]} e5
{[%emt 0:00:08]} 30. g4 {[%emt 0:00:06]} Nf6 {[%emt 0:00:05]} 31. Rxf6 {
[%emt 0:00:09]} gxf6 {[%emt 0:00:00]} 32. Qh7+ {[%emt 0:00:00]} Kf8 {[%emt 0:
00:00]} 33. Ne4 {[%emt 0:00:01]} Ke7 {[%emt 0:00:05]} 34. Qh4 {[%emt 0:00:00]}
Rd6 {[%emt 0:00:02]} 35. f4 {[%emt 0:00:11]} Re6 {[%emt 0:00:00]} 36. f5 {
[%emt 0:00:00]} gxf5 {[%emt 0:00:03]} 37. gxf5 {[%emt 0:00:00]} Rg8+ {[%emt 0:
00:00]} 38. Kh1 {[%emt 0:00:02]} Rd6 {[%emt 0:00:00]} 39. c5 {[%emt 0:00:00]}
Rd4 {[%emt 0:00:07]} 40. Qxf6+ {[%emt 0:00:00]} Kf8 {[%emt 0:00:03]} 41. Qh6+ {
[%emt 0:00:00]} Ke7 {[%emt 0:00:00]} 42. Nd6 {[%emt 0:00:04]} Rd5 {[%emt 0:00:
03]} 43. Qh4+ {[%emt 0:00:03]} Kf8 {[%emt 0:00:00]} 44. Qh6+ {[%emt 0:00:02]}
Ke7 {[%emt 0:00:00]} 45. Nxf7 {[%emt 0:00:02]} Kxf7 {[%emt 0:00:05]} 46. f6 {
[%emt 0:00:03]} Qd7 {[%emt 0:00:02]} 47. Qh7+ {[%emt 0:00:02]} Kf8 {[%emt 0:00:
00]} 48. Qh6+ {[%emt 0:00:00]} Ke8 {[%emt 0:00:02]} 49. Rf1 {[%emt 0:00:02]}
Qf7 {[%emt 0:00:02]} 50. Qh4 {[%emt 0:00:02]} Rd2 {[%emt 0:00:01]} 51. Qb4 {
[%emt 0:00:01]} Qd5+ {[%emt 0:00:02]} 0-1

[Event "RUS-ch Blitz 2021"]
[Site "Sochi"]
[Date "2021.10.11"]
[Round "13.20"]
[White "Murzin, Volodar"]
[Black "Lobanov, Sergei"]
[Result "1-0"]
[ECO "C64"]
[WhiteElo "2513"]
[BlackElo "2501"]
[Annotator "ChessBase"]
[PlyCount "77"]
[EventDate "2021.10.11"]
[EventType "blitz"]
[EventCountry "RUS"]
[SourceTitle "playchess.com"]
[Source "ChessBase"]
[SourceQuality "1"]
[TimeControl "180+2"]

1. e4 {[%emt 0:00:00]} e5 {[%emt 0:00:00]} 2. Nf3 {[%emt 0:00:00]} Nc6 {
[%emt 0:00:00]} 3. Bb5 {[%emt 0:00:23]} a6 {[%emt 0:00:03]} 4. Ba4 {[%emt 0:00:
00]} Bc5 {[%emt 0:00:00]} 5. O-O {[%emt 0:00:00]} Nge7 {[%emt 0:00:00]} 6. c3 {
[%emt 0:00:00]} Ba7 {[%emt 0:00:00]} 7. d4 {[%emt 0:00:05]} Ng6 {[%emt 0:00:03]
} 8. Bg5 {[%emt 0:00:22]} f6 {[%emt 0:00:01]} 9. Be3 {[%emt 0:00:00]} O-O {
[%emt 0:00:00]} 10. d5 {[%emt 0:00:30]} Nce7 {[%emt 0:00:02]} 11. Bxa7 {
[%emt 0:00:00]} Rxa7 {[%emt 0:00:00]} 12. d6 {[%emt 0:00:00]} cxd6 {[%emt 0:00:
00]} 13. Qxd6 {[%emt 0:00:00]} b5 {[%emt 0:00:50]} 14. Bb3+ {[%emt 0:00:00]}
Kh8 {[%emt 0:00:00]} 15. Rd1 {[%emt 0:00:00]} Rc7 {[%emt 0:01:07]} 16. a4 {
[%emt 0:00:45]} Rc6 {[%emt 0:00:00]} 17. Qd2 {[%emt 0:00:00]} Qb6 {[%emt 0:00:
12]} 18. axb5 {[%emt 0:00:00]} axb5 {[%emt 0:00:06]} 19. Na3 {[%emt 0:00:00]}
f5 {[%emt 0:00:00]} 20. Qe3 {[%emt 0:00:37]} Qb8 {[%emt 0:00:20]} 21. Nc2 {
[%emt 0:00:30]} fxe4 {[%emt 0:00:18]} 22. Ng5 {[%emt 0:00:00]} Rcf6 {[%emt 0:
00:00]} 23. Nxe4 {[%emt 0:00:09]} Rf4 {[%emt 0:00:02]} 24. g3 {[%emt 0:00:12]}
R4f5 {[%emt 0:00:13]} 25. Qa7 {[%emt 0:00:05]} Qxa7 {[%emt 0:00:24]} 26. Rxa7 {
[%emt 0:00:00]} Nc6 {[%emt 0:00:00]} 27. Rc7 {[%emt 0:00:09]} Na5 {[%emt 0:00:
13]} 28. Bd5 {[%emt 0:00:00]} Ne7 {[%emt 0:00:00]} 29. Ne3 {[%emt 0:00:00]} Rf3
{[%emt 0:00:00]} 30. Nd6 {[%emt 0:00:13]} Nxd5 {[%emt 0:00:00]} 31. Rxd5 {
[%emt 0:00:00]} Ba6 {[%emt 0:00:00]} 32. Rxe5 {[%emt 0:00:01]} Rxf2 {[%emt 0:
00:04]} 33. Rxd7 {[%emt 0:00:05]} Rxb2 {[%emt 0:00:02]} 34. Ree7 {[%emt 0:00:
00]} Bc8 {[%emt 0:00:00]} 35. Nxc8 {[%emt 0:00:04]} Rxc8 {[%emt 0:00:08]} 36.
Rxg7 {[%emt 0:00:00]} b4 {[%emt 0:00:00]} 37. Rxh7+ {[%emt 0:00:00]} Kg8 {
[%emt 0:00:00]} 38. Nf5 {[%emt 0:00:06]} Rc6 {[%emt 0:00:01]} 39. Rdg7+ {
[%emt 0:00:00]} 1-0

[Event "RUS-ch Blitz 2021"]
[Site "Sochi"]
[Date "2021.10.11"]
[Round "13.21"]
[White "Ivlev, Aleksey"]
[Black "Khegay, Dmitriy"]
[Result "0-1"]
[ECO "E04"]
[WhiteElo "2315"]
[BlackElo "2521"]
[Annotator "ChessBase"]
[PlyCount "86"]
[EventDate "2021.10.11"]
[EventType "blitz"]
[EventCountry "RUS"]
[SourceTitle "playchess.com"]
[Source "ChessBase"]
[SourceQuality "1"]
[TimeControl "180+2"]

1. d4 {[%emt 0:00:00]} Nf6 {[%emt 0:00:00]} 2. c4 {[%emt 0:00:00]} e6 {[%emt 0:
00:00]} 3. g3 {[%emt 0:00:10]} d5 {[%emt 0:00:03]} 4. Nf3 {[%emt 0:00:00]} dxc4
{[%emt 0:00:00]} 5. Bg2 {[%emt 0:00:00]} Bb4+ {[%emt 0:00:00]} 6. Nbd2 {
[%emt 0:00:04]} b5 {[%emt 0:00:01]} 7. O-O {[%emt 0:00:00]} Bb7 {[%emt 0:00:00]
} 8. Qc2 {[%emt 0:00:04]} Nbd7 {[%emt 0:00:15]} 9. a3 {[%emt 0:00:16]} Be7 {
[%emt 0:00:06]} 10. a4 {[%emt 0:00:13]} a6 {[%emt 0:00:40]} 11. b3 {[%emt 0:00:
00]} cxb3 {[%emt 0:00:07]} 12. Nxb3 {[%emt 0:00:01]} Be4 {[%emt 0:00:07]} 13.
Qd1 {[%emt 0:00:54]} O-O {[%emt 0:00:02]} 14. Bf4 {[%emt 0:00:06]} c5 {[%emt 0:
00:02]} 15. dxc5 {[%emt 0:00:14]} Nxc5 {[%emt 0:00:02]} 16. axb5 {[%emt 0:00:
08]} Qxd1 {[%emt 0:00:00]} 17. Raxd1 {[%emt 0:00:03]} Nxb3 {[%emt 0:00:00]} 18.
b6 {[%emt 0:00:00]} Bc5 {[%emt 0:00:17]} 19. Ne5 {[%emt 0:00:04]} Bxg2 {
[%emt 0:00:04]} 20. Kxg2 {[%emt 0:00:03]} Na5 {[%emt 0:00:36]} 21. Ra1 {
[%emt 0:00:20]} Bxb6 {[%emt 0:00:14]} 22. Rfb1 {[%emt 0:00:00]} Bd8 {[%emt 0:
00:03]} 23. Bd2 {[%emt 0:00:07]} Bc7 {[%emt 0:00:09]} 24. Rxa5 {[%emt 0:00:18]}
Bxa5 {[%emt 0:00:04]} 25. Bxa5 {[%emt 0:00:00]} Rfb8 {[%emt 0:00:08]} 26. Ra1 {
[%emt 0:00:14]} Rc8 {[%emt 0:00:09]} 27. Nd3 {[%emt 0:00:04]} h6 {[%emt 0:00:
04]} 28. Kf3 {[%emt 0:00:00]} Nd5 {[%emt 0:00:06]} 29. e4 {[%emt 0:00:09]} Ne7
{[%emt 0:00:01]} 30. Ke3 {[%emt 0:00:14]} Nc6 {[%emt 0:00:00]} 31. Be1 {
[%emt 0:00:09]} a5 {[%emt 0:00:09]} 32. Ra4 {[%emt 0:00:00]} Rab8 {[%emt 0:00:
07]} 33. Nc5 {[%emt 0:00:07]} Rb5 {[%emt 0:00:01]} 34. Nd3 {[%emt 0:00:00]} Rb3
{[%emt 0:00:06]} 35. Ke2 {[%emt 0:00:02]} Rd8 {[%emt 0:00:03]} 36. Nc5 {
[%emt 0:00:06]} Rb5 {[%emt 0:00:00]} 37. Nd3 {[%emt 0:00:02]} Nd4+ {[%emt 0:00:
00]} 38. Kf1 {[%emt 0:00:03]} Nc2 {[%emt 0:00:02]} 39. Ke2 {[%emt 0:00:00]}
Rxd3 {[%emt 0:00:14]} 40. Kxd3 {[%emt 0:00:01]} Nxe1+ {[%emt 0:00:04]} 41. Kc4
{[%emt 0:00:02]} Rb4+ {[%emt 0:00:02]} 42. Rxb4 {[%emt 0:00:03]} axb4 {[%emt 0:
00:00]} 43. Kxb4 {[%emt 0:00:00]} Nd3+ {[%emt 0:00:00]} 0-1

[Event "RUS-ch Blitz 2021"]
[Site "Sochi"]
[Date "2021.10.11"]
[Round "13.22"]
[White "Triapishko, Alexandr"]
[Black "Bryakin, Mikhail"]
[Result "1-0"]
[ECO "A11"]
[WhiteElo "2506"]
[BlackElo "2498"]
[Annotator "ChessBase"]
[PlyCount "127"]
[EventDate "2021.10.11"]
[EventType "blitz"]
[EventCountry "RUS"]
[SourceTitle "playchess.com"]
[Source "ChessBase"]
[SourceQuality "1"]
[TimeControl "180+2"]

1. Nf3 {[%emt 0:00:00]} d5 {[%emt 0:00:00]} 2. g3 {[%emt 0:00:08]} Nf6 {
[%emt 0:00:03]} 3. Bg2 {[%emt 0:00:00]} c6 {[%emt 0:00:00]} 4. c4 {[%emt 0:00:
00]} dxc4 {[%emt 0:00:12]} 5. O-O {[%emt 0:00:00]} Nbd7 {[%emt 0:00:00]} 6. Na3
{[%emt 0:00:15]} Nb6 {[%emt 0:00:00]} 7. Qc2 {[%emt 0:00:00]} g6 {[%emt 0:00:
31]} 8. Nxc4 {[%emt 0:00:08]} Nxc4 {[%emt 0:00:05]} 9. Qxc4 {[%emt 0:00:00]}
Bg7 {[%emt 0:00:00]} 10. d3 {[%emt 0:00:11]} O-O {[%emt 0:00:01]} 11. Bd2 {
[%emt 0:00:03]} Be6 {[%emt 0:00:06]} 12. Qc2 {[%emt 0:00:00]} a5 {[%emt 0:00:
09]} 13. Bc3 {[%emt 0:00:18]} Qb6 {[%emt 0:00:05]} 14. b3 {[%emt 0:00:20]} Rfd8
{[%emt 0:00:01]} 15. Rab1 {[%emt 0:00:04]} Qa6 {[%emt 0:00:04]} 16. Qb2 {
[%emt 0:00:11]} Bd5 {[%emt 0:00:11]} 17. Rfd1 {[%emt 0:00:07]} Bxf3 {[%emt 0:
00:09]} 18. Bxf3 {[%emt 0:00:01]} Ne8 {[%emt 0:00:00]} 19. b4 {[%emt 0:00:23]}
axb4 {[%emt 0:00:11]} 20. Bxg7 {[%emt 0:00:08]} Nxg7 {[%emt 0:00:00]} 21. Qxb4
{[%emt 0:00:00]} Ra7 {[%emt 0:00:03]} 22. Qxe7 {[%emt 0:00:05]} Re8 {[%emt 0:
00:07]} 23. Qf6 {[%emt 0:00:09]} Re6 {[%emt 0:00:14]} 24. Qc3 {[%emt 0:00:06]}
h5 {[%emt 0:00:04]} 25. d4 {[%emt 0:00:07]} Nf5 {[%emt 0:00:07]} 26. d5 {
[%emt 0:00:12]} cxd5 {[%emt 0:00:00]} 27. Bxd5 {[%emt 0:00:00]} Rxe2 {[%emt 0:
00:43]} 28. Qc8+ {[%emt 0:00:30]} Kg7 {[%emt 0:00:16]} 29. Bc4 {[%emt 0:00:00]}
Rc2 {[%emt 0:00:13]} 30. Bxa6 {[%emt 0:00:00]} Rxc8 {[%emt 0:00:00]} 31. Bxb7 {
[%emt 0:00:05]} Rc2 {[%emt 0:00:10]} 32. Bd5 {[%emt 0:00:00]} Nh6 {[%emt 0:00:
10]} 33. Bb3 {[%emt 0:00:04]} Re2 {[%emt 0:00:00]} 34. Re1 {[%emt 0:00:03]} Rd2
{[%emt 0:00:01]} 35. Rbd1 {[%emt 0:00:00]} Rb2 {[%emt 0:00:05]} 36. Rb1 {
[%emt 0:00:05]} Rd2 {[%emt 0:00:00]} 37. Red1 {[%emt 0:00:00]} Re2 {[%emt 0:00:
00]} 38. Kf1 {[%emt 0:00:00]} Re5 {[%emt 0:00:04]} 39. Rd2 {[%emt 0:00:05]} Ng4
{[%emt 0:00:00]} 40. h3 {[%emt 0:00:00]} Nf6 {[%emt 0:00:04]} 41. Kg2 {[%emt 0:
00:00]} Rc5 {[%emt 0:00:00]} 42. Re1 {[%emt 0:00:06]} Rf5 {[%emt 0:00:05]} 43.
Re3 {[%emt 0:00:03]} Rc5 {[%emt 0:00:00]} 44. Rde2 {[%emt 0:00:02]} Rc1 {
[%emt 0:00:05]} 45. Re7 {[%emt 0:00:03]} Rcc7 {[%emt 0:00:04]} 46. Rxc7 {
[%emt 0:00:00]} Rxc7 {[%emt 0:00:00]} 47. a4 {[%emt 0:00:00]} Ra7 {[%emt 0:00:
01]} 48. Re5 {[%emt 0:00:03]} Ng8 {[%emt 0:00:00]} 49. a5 {[%emt 0:00:07]} Ne7
{[%emt 0:00:06]} 50. Rc5 {[%emt 0:00:00]} Kf6 {[%emt 0:00:00]} 51. Bc4 {
[%emt 0:00:05]} Nf5 {[%emt 0:00:06]} 52. a6 {[%emt 0:00:01]} Nd6 {[%emt 0:00:
02]} 53. Bd3 {[%emt 0:00:03]} Ke6 {[%emt 0:00:00]} 54. f4 {[%emt 0:00:05]} Ra8
{[%emt 0:00:02]} 55. Kf3 {[%emt 0:00:00]} Ra7 {[%emt 0:00:02]} 56. g4 {[%emt 0:
00:02]} hxg4+ {[%emt 0:00:00]} 57. hxg4 {[%emt 0:00:01]} Ra8 {[%emt 0:00:01]}
58. Ke3 {[%emt 0:00:01]} Ra7 {[%emt 0:00:00]} 59. Kd4 {[%emt 0:00:03]} Ra8 {
[%emt 0:00:00]} 60. Rc7 {[%emt 0:00:05]} Rd8 {[%emt 0:00:13]} 61. Kc5 {[%emt 0:
00:02]} Ra8 {[%emt 0:00:02]} 62. Rc6 {[%emt 0:00:02]} Rc8 {[%emt 0:00:02]} 63.
a7 {[%emt 0:00:03]} Rxc6+ {[%emt 0:00:04]} 64. Kxc6 {[%emt 0:00:01]} 1-0

[Event "RUS-ch Blitz 2021"]
[Site "Sochi"]
[Date "2021.10.11"]
[Round "13.23"]
[White "Moiseenko, Vadim"]
[Black "Babanin, Gleb"]
[Result "1-0"]
[ECO "B90"]
[WhiteElo "2542"]
[BlackElo "2094"]
[Annotator "ChessBase"]
[PlyCount "53"]
[EventDate "2021.10.11"]
[EventType "blitz"]
[EventCountry "RUS"]
[SourceTitle "playchess.com"]
[Source "ChessBase"]
[SourceQuality "1"]
[TimeControl "180+2"]

1. e4 {[%emt 0:00:04]} c5 {[%emt 0:00:00]} 2. Nf3 {[%emt 0:00:00]} d6 {[%emt 0:
00:00]} 3. d4 {[%emt 0:00:00]} cxd4 {[%emt 0:00:09]} 4. Nxd4 {[%emt 0:00:01]}
Nf6 {[%emt 0:00:00]} 5. Nc3 {[%emt 0:00:00]} a6 {[%emt 0:00:00]} 6. a3 {
[%emt 0:00:00]} e5 {[%emt 0:00:04]} 7. Nf5 {[%emt 0:00:01]} d5 {[%emt 0:00:23]}
8. Bg5 {[%emt 0:00:02]} d4 {[%emt 0:00:00]} 9. Bxf6 {[%emt 0:00:00]} gxf6 {
[%emt 0:00:02]} 10. Nb1 {[%emt 0:00:05]} Be6 {[%emt 0:00:21]} 11. Bd3 {[%emt 0:
00:11]} h5 {[%emt 0:00:07]} 12. O-O {[%emt 0:00:09]} Nd7 {[%emt 0:00:00]} 13.
Nd2 {[%emt 0:00:16]} b5 {[%emt 0:00:07]} 14. a4 {[%emt 0:00:24]} Nc5 {[%emt 0:
00:06]} 15. axb5 {[%emt 0:00:18]} Nxd3 {[%emt 0:00:00]} 16. cxd3 {[%emt 0:00:
02]} axb5 {[%emt 0:00:00]} 17. Rxa8 {[%emt 0:00:17]} Qxa8 {[%emt 0:00:04]} 18.
f4 {[%emt 0:00:00]} Qa2 {[%emt 0:00:38]} 19. Qc1 {[%emt 0:00:11]} Kd7 {[%emt 0:
00:03]} 20. Nf3 {[%emt 0:00:07]} Bd6 {[%emt 0:00:07]} 21. Nxd6 {[%emt 0:00:06]}
Kxd6 {[%emt 0:00:00]} 22. fxe5+ {[%emt 0:00:04]} fxe5 {[%emt 0:00:03]} 23. Nxe5
{[%emt 0:00:06]} Rc8 {[%emt 0:00:03]} 24. Nxf7+ {[%emt 0:00:09]} Kd7 {[%emt 0:
00:00]} 25. Ne5+ {[%emt 0:00:04]} Kd6 {[%emt 0:00:00]} 26. Qf4 {[%emt 0:00:04]}
Rc2 {[%emt 0:00:04]} 27. Nc4+ {[%emt 0:00:15]} 1-0

[Event "RUS-ch Blitz 2021"]
[Site "Sochi"]
[Date "2021.10.11"]
[Round "13.24"]
[White "Potapov, Pavel"]
[Black "Shcherbin, Matvei"]
[Result "1/2-1/2"]
[ECO "B22"]
[WhiteElo "2481"]
[BlackElo "2366"]
[Annotator "ChessBase"]
[PlyCount "71"]
[EventDate "2021.10.11"]
[EventType "blitz"]
[EventCountry "RUS"]
[SourceTitle "playchess.com"]
[Source "ChessBase"]
[SourceQuality "1"]
[TimeControl "180+2"]

1. e4 {[%emt 0:00:00]} c5 {[%emt 0:00:00]} 2. c3 {[%emt 0:00:00]} d5 {[%emt 0:
00:08]} 3. exd5 {[%emt 0:00:02]} Qxd5 {[%emt 0:00:00]} 4. d4 {[%emt 0:00:00]}
Nf6 {[%emt 0:00:00]} 5. Nf3 {[%emt 0:00:00]} Bg4 {[%emt 0:00:00]} 6. Be2 {
[%emt 0:00:12]} e6 {[%emt 0:00:00]} 7. O-O {[%emt 0:00:00]} Nc6 {[%emt 0:00:00]
} 8. h3 {[%emt 0:00:00]} Bh5 {[%emt 0:00:05]} 9. Be3 {[%emt 0:00:00]} cxd4 {
[%emt 0:00:00]} 10. cxd4 {[%emt 0:00:00]} Be7 {[%emt 0:00:00]} 11. Nc3 {
[%emt 0:00:07]} Qd6 {[%emt 0:00:00]} 12. Qb3 {[%emt 0:00:00]} O-O {[%emt 0:00:
04]} 13. Rfd1 {[%emt 0:00:00]} Nb4 {[%emt 0:00:16]} 14. Rac1 {[%emt 0:00:19]}
Nbd5 {[%emt 0:00:11]} 15. Bg5 {[%emt 0:00:47]} Qb4 {[%emt 0:00:28]} 16. Qxb4 {
[%emt 0:00:07]} Bxb4 {[%emt 0:00:08]} 17. Bxf6 {[%emt 0:00:46]} Nxf6 {[%emt 0:
00:01]} 18. g4 {[%emt 0:00:04]} Bg6 {[%emt 0:00:06]} 19. Ne5 {[%emt 0:00:00]}
Rfd8 {[%emt 0:00:49]} 20. Bf3 {[%emt 0:00:05]} Bxc3 {[%emt 0:00:08]} 21. Rxc3 {
[%emt 0:00:10]} Rac8 {[%emt 0:00:36]} 22. Bxb7 {[%emt 0:00:21]} Rxc3 {[%emt 0:
00:17]} 23. bxc3 {[%emt 0:00:00]} Rb8 {[%emt 0:00:00]} 24. Bf3 {[%emt 0:00:03]}
Rb2 {[%emt 0:00:01]} 25. c4 {[%emt 0:00:20]} Rxa2 {[%emt 0:00:15]} 26. c5 {
[%emt 0:00:00]} Kf8 {[%emt 0:00:05]} 27. Nxg6+ {[%emt 0:00:18]} hxg6 {[%emt 0:
00:03]} 28. Rb1 {[%emt 0:00:02]} Nd5 {[%emt 0:00:08]} 29. Bxd5 {[%emt 0:00:03]}
exd5 {[%emt 0:00:00]} 30. Rb8+ {[%emt 0:00:08]} Ke7 {[%emt 0:00:06]} 31. Rb7+ {
[%emt 0:00:00]} Ke8 {[%emt 0:00:00]} 32. c6 {[%emt 0:00:08]} Rc2 {[%emt 0:00:
00]} 33. Rxa7 {[%emt 0:00:03]} Rxc6 {[%emt 0:00:04]} 34. Ra5 {[%emt 0:00:01]}
Rd6 {[%emt 0:00:00]} 35. Kg2 {[%emt 0:00:04]} Ke7 {[%emt 0:00:01]} 36. Kf3 {
[%emt 0:00:00]} 1/2-1/2